bitfinex/quotes_ETHUSD_20260209
["timestamp","ask_amount","ask_price","bid_price","bid_amount"]
[1770624625500,2.47519637,2071.4,2070.8,1.20721747]
[1770624625693,0.05818464,2071.3,2070.8,1.20721747]
[1770624625903,0.05818464,2071.3,2069.9,5.68526557]
[1770624625904,0.05818464,2071.0,2070.1,1.43539583]
[1770624626108,0.05818464,2070.9,2070.1,1.43539583]
[1770624626321,0.05818464,2070.9,2070.3,1.2075495]
[1770624626495,1.26542955,2070.9,2069.9,4.83113632]
[1770624626694,1.26542955,2070.9,2069.9,6.26653215]
[1770624627092,1.26542955,2070.9,2070.0,1.43539583]
[1770624628324,4.88626834,2071.3,2070.0,1.43539583]
[1770624628521,1.20702974,2071.2,2070.2,2.64300862]
[1770624628826,1.20702974,2071.2,2070.3,1.43539583]
[1770624629239,1.26519637,2071.3,2070.3,1.43539583]
[1770624629746,2.47519637,2071.4,2070.4,1.43539583]
[1770624630117,3.68211306,2071.4,2070.4,1.43539583]
[1770624630619,3.68211306,2071.4,2070.6,1.43539583]
[1770624630818,0.002,2071.2,2070.6,1.43539583]
[1770624631847,0.002,2071.2,2070.7,6.967492]
[1770624632845,0.002,2071.2,2070.8,1.20726289]
[1770624634922,0.002,2071.2,2070.7,6.26459599]
[1770624639851,0.002,2071.2,2070.8,1.43539583]
[1770624640751,0.002,2071.2,2070.7,1.20732119]
[1770624640937,0.002,2071.2,2070.5,0.001]
[1770624641132,0.05818464,2071.0,2070.5,0.001]
[1770624641334,0.002,2071.2,2070.5,0.001]
[1770624642239,0.002,2071.2,2070.5,1.43639583]
[1770624643652,0.002,2071.2,2070.5,0.001]
[1770624644056,0.002,2071.2,2070.9,0.001]
[1770624648151,1.20902974,2071.2,2070.5,1.20839543]
[1770624648665,0.05818464,2071.0,2070.5,1.20839543]
[1770624649633,0.002,2071.2,2070.5,1.20839543]
[1770624651473,0.002,2071.2,2070.5,2.56497112]
[1770624651877,0.002,2071.2,2070.5,1.20839543]
[1770624652088,0.002,2071.2,2070.5,0.001]
[1770624653153,0.05818464,2071.0,2070.5,0.001]
[1770624654162,1.2071208,2071.1,2070.5,0.001]
[1770624654367,1.26530544,2071.1,2070.5,0.001]
[1770624657090,1.20907542,2071.2,2070.5,1.35757569]
[1770624657394,1.26726006,2071.2,2070.5,1.35757569]
[1770624657596,1.26726006,2071.2,2070.7,0.001]
[1770624657890,0.002,2071.0,2070.7,0.001]
[1770624660600,1.30719561,2070.9,2070.5,0.001]
[1770624660898,1.30719561,2070.9,2066.5,13.41844228]
[1770624660899,1.30719561,2068.0,2066.5,13.41844228]
[1770624661094,4.14138653,2066.6,2065.5,18.56485004]
[1770624661294,5.16701294,2066.1,2065.6,18.56485004]
[1770624661496,2.0530541,2066.3,2065.1,1.35657569]
[1770624661497,1.01711278,2066.0,2065.1,4.84232326]
[1770624661674,1.01711776,2065.9,2065.6,1.21029458]
[1770624661881,10.60181335,2066.7,2065.7,1.33238214]
[1770624662193,13.56150382,2067.1,2066.8,0.05818464]
[1770624662392,13.56150382,2067.1,2066.6,0.05818464]
[1770624662584,13.56150382,2067.1,2066.3,0.05818464]
[1770624662785,13.56150382,2067.1,2066.4,8.715846]
[1770624662987,13.56150382,2067.1,2066.4,1.20980513]
[1770624663282,14.77092819,2067.1,2066.1,1.20997392]
[1770624663483,1.20942437,2067.1,2065.9,4.8404531]
[1770624663693,1.20942437,2067.1,2066.1,1.20997049]
[1770624664185,0.32944029,2067.4,2066.4,1.2098032]
[1770624664186,1.6366359,2067.4,2066.4,1.2098032]
[1770624664411,0.32944029,2067.4,2066.4,1.2098032]
[1770624665114,1.53868915,2067.4,2066.5,0.89631233]
[1770624666296,0.32944029,2067.4,2066.5,0.89631233]
[1770624666599,0.32944029,2067.4,2066.4,1.26798784]
[1770624666600,0.32944029,2067.4,2066.4,1.2098032]
[1770624666787,0.32944029,2067.4,2066.5,3.538014]
[1770624667007,0.32944029,2067.4,2066.6,1.20971644]
[1770624667588,0.32944029,2067.4,2066.7,7.495336]
[1770624667796,0.32944029,2067.4,2066.7,2.734908]
[1770624668022,0.32944029,2067.4,2066.7,2.05815]
[1770624668983,0.32944029,2067.4,2066.7,3.41472569]
[1770624669188,1.20884664,2068.1,2067.0,5.200035]
[1770624669481,2.51601672,2068.2,2067.0,5.200035]
[1770624669907,2.51601672,2068.2,2066.9,1.20954085]
[1770624670076,2.51601672,2068.2,2067.0,3.470014]
[1770624670905,2.51601672,2068.2,2067.0,3.538014]
[1770624671105,2.51601672,2068.2,2066.9,1.20954085]
[1770624671106,0.002,2067.2,2066.9,2.750484]
[1770624671781,0.002,2067.4,2066.9,2.750484]
[1770624672424,0.002,2067.4,2067.0,9.442306]
[1770624672917,0.002,2067.4,2067.0,7.979806]
[1770624673209,0.002,2068.3,2067.1,1.20942383]
[1770624673711,1.21072665,2068.3,2067.1,1.20942383]
[1770624674111,0.002,2068.3,2067.1,1.20942383]
[1770624674410,1.21074356,2068.3,2067.1,1.20942383]
[1770624674623,1.30719561,2068.2,2067.1,1.20942383]
[1770624675207,1.20883903,2068.1,2066.8,5.059775]
[1770624675408,1.20883903,2068.1,2066.8,3.007905]
[1770624675931,2.51599594,2068.2,2066.9,3.03563625]
[1770624676214,2.51599594,2068.2,2066.7,4.83869532]
[1770624676414,1.20880033,2068.2,2066.7,4.83869532]
[1770624676589,3.1069652,2068.1,2066.8,5.474853]
[1770624676784,3.1069652,2068.1,2066.7,4.83869532]
[1770624677415,4.31582279,2068.1,2066.9,1.20954085]
[1770624677909,3.1069652,2068.1,2066.9,1.20954085]
[1770624679920,0.002,2068.3,2067.3,10.11796027]
[1770624680406,0.002,2068.3,2067.2,2.95438498]
[1770624680608,0.002,2068.3,2067.3,17.247076]
[1770624680993,0.002,2068.3,2067.3,30.0]
[1770624681406,0.002,2068.3,2067.3,20.438457]
[1770624682411,0.002,2068.3,2067.4,1.20924833]
[1770624683791,0.002,2068.1,2067.4,1.20924833]
[1770624684412,0.002,2068.1,2067.4,2.598459]
[1770624685825,0.002,2068.1,2067.3,4.83699332]
[1770624687034,0.002,2068.1,2067.2,7.236436]
[1770624687035,2.83393711,2068.1,2067.2,7.236436]
[1770624687204,2.83393711,2068.1,2067.1,2.849153]
[1770624687521,2.83393711,2068.1,2067.1,2.039143]
[1770624688203,2.83393711,2068.1,2067.1,3.78202]
[1770624690238,2.83393711,2068.1,2067.2,1.20936532]
[1770624693940,0.002,2068.1,2067.2,2.95438498]
[1770624694116,0.002,2068.1,2067.3,2.95438498]
[1770624694908,0.002,2068.1,2067.1,4.8374613]
[1770624695113,2.83393711,2068.1,2067.1,4.8374613]
[1770624695612,2.83393711,2068.1,2067.4,0.001]
[1770624696937,0.002,2068.1,2067.4,0.001]
[1770624704729,0.002,2068.1,2067.4,1.21024833]
[1770624707961,0.002,2068.1,2067.6,0.001]
[1770624708267,0.002,2067.9,2067.6,0.001]
[1770624709033,0.002,2068.1,2067.6,0.001]
[1770624714254,2.95183365,2068.1,2067.6,0.001]
[1770624714864,0.002,2068.3,2067.6,2.71947431]
[1770624715471,0.002,2069.0,2068.4,12.83643458]
[1770624715639,2.4532067,2069.2,2068.4,12.83643458]
[1770624715840,5.40304035,2069.2,2068.2,7.03893]
[1770624716145,0.00354,2069.7,2068.4,2.71847431]
[1770624716339,2.95337365,2069.7,2068.5,2.71847431]
[1770624717237,2.95337365,2069.7,2068.4,10.11796027]
[1770624717238,0.00354,2069.7,2068.9,2.71847431]
[1770624717438,4.49491979,2070.2,2068.9,2.71847431]
[1770624717654,3.00801829,2070.1,2068.9,2.71847431]
[1770624718246,2.94983365,2070.1,2069.0,1.20831319]
[1770624718546,0.3374712,2070.2,2069.1,2.71847431]
[1770624720172,3.28730485,2070.2,2069.1,2.71847431]
[1770624720672,4.49491951,2070.2,2069.2,1.2081964]
[1770624721170,0.002,2070.1,2069.2,1.2081964]
[1770624721368,3.00801829,2069.7,2069.1,1.20821489]
[1770624722163,0.05818464,2070.0,2069.1,1.20821489]
[1770624722164,2.94983365,2070.0,2069.1,1.20821489]
[1770624722872,2.94983365,2070.0,2069.0,4.83320956]
[1770624723060,2.94983365,2070.0,2069.0,7.55168387]
[1770624723262,1.20967217,2070.1,2069.1,2.71847431]
[1770624723263,0.002,2070.1,2069.1,2.71847431]
[1770624724658,1.20967293,2070.1,2069.1,2.71847431]
[1770624724857,4.15950658,2070.1,2069.2,1.2081964]
[1770624725166,2.95183365,2070.1,2069.2,1.2081964]
[1770624726969,2.95183365,2070.1,2069.2,2.71847431]
[1770624727473,0.002,2070.1,2069.2,2.71847431]
[1770624727643,0.3374712,2070.2,2069.4,2.71847431]
[1770624728050,5.41697631,2070.6,2069.4,3.07689468]
[1770624728861,2.46714266,2070.6,2069.4,3.07689468]
[1770624729067,2.46714266,2070.6,2069.8,2.71847431]
[1770624729455,0.002,2071.0,2070.1,2.71847431]
[1770624729776,0.002,2071.0,2070.4,4.061754]
[1770624730074,0.002,2071.0,2070.4,2.71847431]
[1770624730372,0.002,2071.0,2070.2,0.35842037]
[1770624730587,0.002,2071.0,2069.9,10.91999531]
[1770624730870,0.002,2071.0,2069.9,2.71847431]
[1770624731071,0.002,2071.0,2070.1,2.71847431]
[1770624733071,0.002,2071.0,2070.2,1.20761279]
[1770624733448,0.002,2071.0,2070.2,3.9260871]
[1770624733648,0.002,2070.8,2070.2,3.9260871]
[1770624734576,0.002,2070.8,2070.2,1.20761279]
[1770624738683,0.002,2070.8,2070.2,3.96755201]
[1770624739048,0.002,2070.8,2070.3,2.75993922]
[1770624739476,0.002,2071.0,2070.4,2.75993922]
[1770624740984,0.002,2071.0,2070.5,1.20743781]
[1770624741165,0.002,2071.0,2070.5,3.96737703]
[1770624741683,0.002,2071.0,2070.6,2.75993922]
[1770624742969,0.002,2071.0,2070.6,1.20736656]
[1770624745605,0.002,2071.0,2070.5,1.20741277]
[1770624746569,0.002,2070.8,2070.5,1.20741277]
[1770624747193,2.73450048,2070.8,2070.1,1.20764728]
[1770624747496,2.73250048,2070.6,2069.8,1.20780246]
[1770624747795,2.73250048,2070.6,2069.5,2.75993922]
[1770624747796,1.20743781,2070.5,2069.6,3.96790211]
[1770624748897,0.05818464,2070.4,2069.5,1.20799351]
[1770624749100,2.79068512,2070.4,2069.5,1.20799351]
[1770624749874,1.20755446,2070.3,2069.5,1.20799351]
[1770624750198,3.94005494,2070.3,2069.5,1.20799351]
[1770624751699,2.79068512,2070.1,2069.4,0.001]
[1770624752075,3.94022994,2070.0,2069.4,0.001]
[1770624753513,2.73250048,2069.7,2069.1,0.001]
[1770624754180,1.20796289,2069.6,2069.1,0.001]
[1770624754889,0.05818464,2069.5,2069.1,0.001]
[1770624755080,2.79068512,2069.5,2068.7,1.20848437]
[1770624755291,2.79068512,2069.5,2068.6,1.20850924]
[1770624755810,2.79068512,2069.5,2068.5,1.20856749]
[1770624755997,0.05818464,2069.2,2068.3,1.20969122]
[1770624756314,1.20825479,2069.1,2068.3,0.001]
[1770624756477,3.94075527,2069.1,2068.3,0.001]
[1770624756677,2.79068512,2068.8,2068.3,0.001]
[1770624756898,2.79068512,2068.8,2067.8,0.001]
[1770624757100,0.05818464,2068.5,2067.8,0.001]
[1770624757381,2.79068512,2068.8,2068.0,1.20888771]
[1770624757582,2.79068512,2068.8,2067.9,1.20891054]
[1770624757795,2.79068512,2068.8,2068.0,0.001]
[1770624758191,1.2086637,2068.4,2068.0,0.001]
[1770624758685,1.20848842,2068.7,2068.0,0.001]
[1770624759209,0.05818464,2068.9,2068.0,0.001]
[1770624759210,0.05818464,2068.9,2068.0,2.76093922]
[1770624759584,1.20831319,2069.0,2068.0,2.76093922]
[1770624760801,1.20831319,2069.0,2068.1,1.20883903]
[1770624760998,0.05818464,2068.9,2068.1,1.20883903]
[1770624761510,0.05595668,2068.9,2068.1,1.20883903]
[1770624761803,0.05360789,2068.9,2068.1,1.20883903]
[1770624762909,1.26200629,2068.9,2068.1,1.20883903]
[1770624763101,1.2083984,2068.9,2068.1,1.20883903]
[1770624763611,1.26658304,2068.9,2068.1,1.20883903]
[1770624763793,2.73250048,2068.8,2068.0,1.2123313]
[1770624764887,3.94075527,2069.1,2068.2,1.20878058]
[1770624765104,0.05818464,2068.9,2068.2,1.20878058]
[1770624765482,0.05818464,2068.9,2068.1,1.2087989]
[1770624766008,0.05818464,2068.8,2068.0,0.00347621]
[1770624766305,1.26643943,2069.1,2068.1,4.05806963]
[1770624766500,4.83279121,2069.2,2068.2,2.8492349]
[1770624766501,1.20824138,2069.2,2068.2,2.8492349]
[1770624766685,1.26642602,2069.2,2068.2,2.8492349]
[1770624766885,1.26642602,2069.2,2068.3,1.20872213]
[1770624767285,0.16058464,2069.6,2068.4,2.8492349]
[1770624767286,4.16572384,2069.6,2068.4,2.8492349]
[1770624767486,4.83223482,2069.5,2068.4,2.8492349]
[1770624768330,1.20802126,2069.5,2068.4,2.8492349]
[1770624768811,1.26618306,2069.6,2068.4,2.8492349]
[1770624769015,1.26618306,2069.6,2068.6,2.8492349]
[1770624770135,0.06018464,2069.3,2068.5,1.20860526]
[1770624770808,0.002,2069.3,2068.5,1.20860526]
[1770624771012,0.002,2069.3,2068.5,2.8492349]
[1770624773526,0.002,2069.3,2068.6,1.20854684]
[1770624776724,0.002,2069.3,2068.6,4.05778174]
[1770624778520,0.002,2069.3,2068.7,2.8492349]
[1770624779741,0.05818464,2069.2,2068.5,2.8492349]
[1770624779946,0.002,2069.3,2068.5,2.8492349]
[1770624781424,0.002,2069.3,2068.6,4.05778174]
[1770624781747,0.002,2069.5,2068.7,2.8492349]
[1770624782335,0.05818464,2069.3,2068.7,2.8492349]
[1770624782539,0.05818464,2069.3,2068.6,1.20854684]
[1770624782720,0.05818464,2069.3,2068.7,0.001]
[1770624783126,0.002,2069.1,2068.7,0.001]
[1770624785335,0.002,2069.3,2068.8,2.8492349]
[1770624785542,0.002,2069.3,2068.9,1.20837159]
[1770624785853,0.002,2069.3,2068.9,4.05760649]
[1770624787453,0.002,2069.3,2068.9,1.20837159]
[1770624787631,0.002,2069.3,2068.8,4.83348639]
[1770624787943,0.002,2069.3,2068.8,1.20843]
[1770624790460,0.002,2069.3,2068.7,0.001]
[1770624790833,0.002,2069.3,2068.7,2.8502349]
[1770624792253,0.002,2069.3,2068.7,0.001]
[1770624796559,0.002,2069.3,2068.9,0.001]
[1770624796763,0.002,2069.1,2068.9,0.001]
[1770624800151,0.002,2069.5,2069.0,2.73040769]
[1770624801046,10.27,2070.1,2069.2,2.73040769]
[1770624801247,5.29119482,2070.2,2069.2,2.73040769]
[1770624801248,0.002,2070.0,2069.2,2.73040769]
[1770624803360,0.002,2070.0,2069.3,3.9385457]
[1770624804145,0.002,2070.0,2069.4,2.73040769]
[1770624805265,0.002,2070.0,2069.5,1.20802126]
[1770624805473,2.50852887,2070.2,2069.5,3.93842895]
[1770624805640,0.002,2070.1,2069.5,3.93842895]
[1770624807368,0.002,2070.1,2069.5,1.20802126]
[1770624808770,2.84285059,2070.1,2069.5,1.20802077]
[1770624809343,0.002,2069.9,2069.4,0.001]
[1770624809980,2.84085059,2069.8,2069.1,0.001]
[1770624810143,2.84085059,2069.8,2069.1,1.2092537]
[1770624810144,2.84285059,2069.8,2069.1,1.2092537]
[1770624810641,0.002,2069.7,2069.1,1.2092537]
[1770624811778,1.20990452,2069.7,2069.1,0.001]
[1770624811946,1.20790452,2069.7,2069.1,0.001]
[1770624814553,0.05818464,2069.5,2069.1,0.001]
[1770624814766,2.84085059,2069.5,2069.1,0.001]
[1770624815075,0.05818464,2069.5,2069.1,0.001]
[1770624815454,0.002,2069.6,2069.1,0.001]
[1770624816548,1.20790452,2069.7,2069.1,0.001]
[1770624816750,0.002,2069.6,2069.1,0.001]
[1770624817175,1.20790452,2069.7,2069.1,0.001]
[1770624817367,0.002,2069.6,2069.1,0.001]
[1770624818097,1.20788283,2069.8,2069.1,0.001]
[1770624818272,0.002,2069.6,2069.1,2.73140769]
[1770624818998,0.002,2069.6,2069.2,1.2081964]
[1770624821198,0.002,2069.9,2069.2,3.93860409]
[1770624821389,0.002,2069.8,2069.2,3.93860409]
[1770624821597,0.002,2069.8,2069.3,0.001]
[1770624822196,0.002,2069.7,2069.3,0.001]
[1770624822696,0.002,2069.7,2069.3,2.73140769]
[1770624824198,0.002,2069.9,2069.4,3.93848732]
[1770624824404,0.002,2069.8,2069.4,3.93848732]
[1770624825803,0.002,2069.7,2069.4,1.20807963]
[1770624826684,0.002,2069.7,2069.3,4.83348298]
[1770624826983,0.002,2069.6,2069.3,4.83348298]
[1770624827304,0.002,2069.8,2069.3,4.83348298]
[1770624827510,0.002,2069.8,2069.3,1.20913801]
[1770624827704,2.74733683,2069.7,2069.1,1.20922399]
[1770624827897,2.74733683,2069.7,2069.1,0.001]
[1770624828082,0.002,2069.6,2069.1,1.20923598]
[1770624828280,0.06018464,2069.6,2069.1,1.20923598]
[1770624828604,0.06018464,2069.6,2069.1,0.001]
[1770624829814,1.26815213,2069.6,2069.1,0.001]
[1770624830019,0.06018464,2069.6,2069.1,0.001]
[1770624830512,1.26815559,2069.6,2069.1,0.001]
[1770624830886,1.26814986,2069.6,2069.1,0.001]
[1770624831401,0.06018464,2069.6,2069.1,0.001]
[1770624832411,1.26815407,2069.6,2069.1,0.001]
[1770624833005,2.68715219,2069.5,2069.1,0.001]
[1770624833520,0.05818464,2069.3,2069.1,0.001]
[1770624833726,2.74533683,2069.3,2069.1,0.001]
[1770624834010,2.74533683,2069.3,2068.7,0.001]
[1770624834211,2.68815219,2069.2,2068.7,0.001]
[1770624834417,0.05818464,2069.0,2068.7,0.001]
[1770624834788,1.26651568,2069.0,2068.7,0.001]
[1770624835092,3.95366787,2069.0,2068.5,0.001]
[1770624835302,2.68815219,2068.9,2068.5,0.001]
[1770624835603,0.001,2068.9,2068.5,0.001]
[1770624837380,0.05918464,2068.9,2068.5,0.001]
[1770624838807,1.26756077,2068.9,2068.5,0.001]
[1770624839582,0.05918464,2068.9,2068.5,0.001]
[1770624839783,0.05918464,2068.9,2068.5,2.76725081]
[1770624839784,0.001,2068.9,2068.5,2.76725081]
[1770624840305,4.83445278,2069.4,2068.5,2.76725081]
[1770624840306,1.21011873,2069.4,2068.7,2.76625081]
[1770624840505,1.21011873,2069.4,2068.5,2.76725081]
[1770624840688,0.05818464,2069.2,2068.5,2.76725081]
[1770624840887,1.26641325,2069.2,2068.5,0.001]
[1770624841294,3.95356544,2069.2,2068.5,0.001]
[1770624841509,0.05818464,2068.9,2068.5,0.001]
[1770624843592,1.26656144,2068.9,2068.5,0.001]
[1770624844298,1.26656789,2068.9,2068.5,0.001]
[1770624844690,1.20834657,2069.0,2068.5,0.001]
[1770624845494,1.20829752,2069.1,2068.5,0.001]
[1770624846413,0.05818464,2068.9,2068.5,0.001]
[1770624847719,1.26660967,2068.9,2068.5,0.001]
[1770624848921,1.26660967,2068.9,2068.7,0.001]
[1770624852223,1.20834903,2069.0,2068.7,0.001]
[1770624853222,1.2082955,2069.1,2068.7,0.001]
[1770624854217,0.05818464,2068.9,2068.7,0.001]
[1770624856302,1.20843,2068.8,2068.5,0.001]
[1770624857205,1.2666035,2068.9,2068.5,0.001]
[1770624859722,1.20835688,2069.0,2068.5,2.42759095]
[1770624859925,0.05818464,2068.9,2068.5,2.42759095]
[1770624860243,0.05818464,2068.9,2068.5,0.001]
[1770624860624,0.05818464,2068.9,2068.7,0.001]
[1770624861128,0.06018464,2068.9,2068.7,0.001]
[1770624861332,0.06018464,2068.9,2068.1,7.26191591]
[1770624861333,0.05818464,2068.5,2068.0,1.21237295]
[1770624861936,0.05818464,2068.5,2068.0,3.6389639]
[1770624862143,8.48381672,2068.4,2067.8,2.42759095]
[1770624862319,0.05818464,2068.1,2067.8,0.001]
[1770624863260,0.05818464,2068.1,2067.5,0.001]
[1770624863814,2.62657675,2067.8,2067.1,0.001]
[1770624864133,0.05818464,2067.4,2067.1,0.001]
[1770624864639,0.05818464,2067.4,2066.9,0.001]
[1770624865629,0.05818464,2067.4,2066.9,1.21054071]
[1770624866135,0.05818464,2067.8,2067.0,2.42659095]
[1770624866333,1.20889748,2068.0,2067.0,2.42659095]
[1770624866717,0.05818464,2067.8,2067.0,2.42659095]
[1770624867312,0.05818464,2067.5,2066.9,1.21054071]
[1770624867927,0.05818464,2067.5,2066.9,2.42759095]
[1770624868127,0.05818464,2067.5,2066.9,0.001]
[1770624868330,0.05818464,2067.5,2066.9,2.42759095]
[1770624869642,1.20878111,2068.2,2067.1,2.42659095]
[1770624869943,1.26703874,2068.1,2067.2,3.63595627]
[1770624870145,0.05818464,2068.1,2067.2,3.63595627]
[1770624870450,1.26702713,2068.1,2067.2,3.63595627]
[1770624871646,0.05818464,2068.1,2067.2,3.63595627]
[1770624872027,1.26702458,2068.1,2067.3,2.42659095]
[1770624873658,0.05818464,2068.1,2067.3,2.42659095]
[1770624873946,0.05818464,2068.1,2067.4,1.20924833]
[1770624874133,0.05818464,2068.1,2067.4,3.63583928]
[1770624876748,1.26704261,2068.1,2067.4,3.63583928]
[1770624877681,0.05818464,2067.8,2067.3,1.20929634]
[1770624879052,0.05818464,2067.8,2067.3,1.20930682]
[1770624879959,3.83545427,2068.1,2067.3,3.63589777]
[1770624880158,1.26706216,2068.1,2067.4,2.42659095]
[1770624880460,1.2670238,2068.1,2067.4,2.42659095]
[1770624880635,7.40536251,2068.3,2067.4,2.42659095]
[1770624880636,0.002,2068.3,2067.4,2.42659095]
[1770624880837,0.05818464,2068.2,2067.4,2.42659095]
[1770624881341,0.06018464,2068.3,2067.6,2.42659095]
[1770624882161,0.002,2068.3,2067.6,2.42659095]
[1770624884159,0.002,2068.3,2067.8,2.42659095]
[1770624886169,0.002,2068.3,2068.0,2.57892512]
[1770624886540,0.002,2068.1,2068.0,2.57892512]
[1770624886943,0.002,2068.3,2068.0,2.57892512]
[1770624887242,0.002,2068.5,2067.9,1.20895594]
[1770624887455,0.002,2068.5,2068.0,2.57892512]
[1770624888463,0.002,2068.5,2068.1,1.20883903]
[1770624888674,0.002,2068.5,2068.2,2.57892512]
[1770624889857,0.05818464,2068.1,2067.5,2.57892512]
[1770624890059,0.05818464,2068.1,2067.8,1.20898976]
[1770624891552,0.05818464,2068.4,2067.7,2.57892512]
[1770624893881,0.05818464,2068.4,2067.8,1.20901441]
[1770624894084,0.002,2068.5,2067.9,2.57892512]
[1770624894386,0.05818464,2068.4,2067.9,2.57892512]
[1770624896264,0.05818464,2068.4,2068.0,1.20889748]
[1770624897680,1.26684993,2068.4,2067.8,1.20897713]
[1770624897870,0.05818464,2068.1,2067.8,1.20897713]
[1770624898181,0.05818464,2068.4,2067.9,1.20894598]
[1770624898382,0.05818464,2068.4,2067.8,4.83603049]
[1770624898965,1.21064828,2068.5,2067.9,2.57892512]
[1770624898966,0.002,2068.5,2067.9,2.57892512]
[1770624899284,0.002,2068.5,2067.9,2.57992512]
[1770624899485,0.002,2068.2,2067.9,2.57992512]
[1770624900884,0.002,2068.2,2068.0,1.20889748]
[1770624901486,0.002,2068.2,2067.9,1.20991705]
[1770624901663,0.002,2068.2,2067.9,1.20994261]
[1770624902761,0.002,2068.2,2067.9,0.001]
[1770624902959,0.002,2068.2,2067.9,2.57992512]
[1770624903584,0.002,2068.4,2068.0,2.57892512]
[1770624904868,0.002,2068.4,2068.1,1.20883903]
[1770624906789,0.002,2068.4,2068.2,2.57892512]
[1770624907583,0.002,2068.4,2068.3,1.20872213]
[1770624912090,0.00012351,2068.5,2068.4,0.001]
[1770624912270,0.00012351,2068.5,2068.4,0.00309734]
[1770624914868,0.002,2068.9,2068.5,2.57892512]
[1770624916584,0.002,2068.9,2068.4,0.00309734]
[1770624916585,0.05818464,2068.7,2068.4,0.00309734]
[1770624916784,0.05818464,2068.7,2068.1,0.001]
[1770624916785,1.20854684,2068.6,2068.1,0.001]
[1770624916985,0.05818464,2068.4,2068.1,0.001]
[1770624917509,2.37597226,2068.7,2068.1,0.001]
[1770624917710,1.26668178,2068.7,2068.1,0.001]
[1770624918006,3.54226106,2068.7,2068.1,0.001]
[1770624919690,1.26668178,2068.7,2068.1,0.001]
[1770624920300,0.05818464,2068.7,2068.1,2.40094581]
[1770624921412,0.002,2068.9,2068.2,1.20878058]
[1770624921577,0.002,2068.9,2068.2,3.60872639]
[1770624923699,0.002,2068.9,2068.2,1.20878058]
[1770624923906,0.05818464,2068.7,2068.2,1.20878058]
[1770624924406,0.05818464,2068.4,2068.1,1.20980758]
[1770624924901,0.05818464,2068.7,2068.1,1.20980682]
[1770624925105,0.05818464,2068.4,2068.1,0.001]
[1770624925306,0.05818464,2068.4,2068.1,1.20982753]
[1770624925504,0.05818464,2068.4,2068.1,0.001]
[1770624926310,0.05818464,2068.1,2067.6,0.001]
[1770624926483,2.33376392,2068.1,2067.6,0.001]
[1770624927910,3.54263224,2068.1,2067.6,0.001]
[1770624928120,2.33376392,2068.1,2067.6,0.001]
[1770624928420,1.20883939,2068.1,2067.6,0.001]
[1770624929295,1.26702403,2068.1,2067.6,0.001]
[1770624930214,3.48436879,2068.2,2067.6,0.001]
[1770624930418,1.20878951,2068.2,2067.6,0.001]
[1770624931204,7.10989891,2068.6,2067.6,2.40094581]
[1770624931728,0.002,2068.7,2067.6,2.40094581]
[1770624931910,0.002,2068.7,2068.0,2.39994581]
[1770624932215,2.45552467,2069.1,2068.3,2.39994581]
[1770624934514,0.00040028,2068.9,2068.4,1.2086637]
[1770624934822,2.45423847,2069.1,2068.5,2.39994581]
[1770624937004,2.45423847,2069.1,2068.6,3.60849265]
[1770624937213,0.002,2068.7,2068.6,3.60849265]
[1770624939027,0.002,2068.9,2068.6,3.60849265]
[1770624940223,0.002,2068.9,2068.7,2.39994581]
[1770624941397,2.45423847,2069.1,2068.8,3.60837581]
[1770624941398,2.34756455,2069.1,2068.8,3.60837581]
[1770624941598,0.002,2069.3,2068.9,2.39994581]
[1770624942729,0.002,2069.3,2068.8,1.20843]
[1770624942919,0.002,2069.3,2068.8,3.60837581]
[1770624943229,0.002,2069.3,2068.9,2.39994581]
[1770624943431,0.002,2069.3,2069.0,1.20831319]
[1770624943611,0.002,2069.3,2068.6,2.39994581]
[1770624943934,0.002,2069.3,2068.9,1.20836474]
[1770624944421,0.002,2069.3,2068.9,1.20836734]
[1770624945514,0.002,2069.3,2068.9,2.40259446]
[1770624946113,0.002,2069.3,2068.9,2.39819446]
[1770624947712,0.002,2069.3,2069.0,1.20831319]
[1770624947916,0.002,2069.3,2068.9,1.20834007]
[1770624950304,0.002,2069.1,2068.9,1.20834007]
[1770624952519,0.002,2069.1,2068.9,3.61093453]
[1770624952727,0.002,2069.1,2069.0,2.40259446]
[1770624954641,0.002,2069.1,2068.8,2.40359446]
[1770624954815,0.002,2069.1,2068.8,0.001]
[1770624962142,0.002,2069.1,2068.8,2.40359446]
[1770624962636,0.002,2069.1,2069.0,0.001]
[1770624963538,0.002,2069.3,2069.0,0.001]
[1770624963844,0.002,2069.6,2069.1,2.40259446]
[1770624964137,0.002,2069.6,2069.2,1.2081964]
[1770624965039,0.002,2069.6,2069.3,2.40259446]
[1770624965213,0.002,2069.6,2069.2,1.2081964]
[1770624965938,0.002,2069.6,2069.1,1.20821035]
[1770624966110,2.30906314,2069.5,2069.0,0.001]
[1770624966710,0.05818464,2069.5,2069.0,0.001]
[1770624967125,0.002,2069.6,2069.0,0.001]
[1770624967324,0.002,2069.6,2069.0,2.40359446]
[1770624968720,0.002,2069.6,2069.1,1.20825479]
[1770624970661,0.002,2069.6,2069.1,3.61084925]
[1770624971535,0.002,2069.6,2069.2,2.40259446]
[1770624973046,0.002,2069.6,2069.3,3.61073247]
[1770624973951,0.002,2069.6,2069.3,1.20813801]
[1770624975553,0.002,2069.6,2069.2,4.83355207]
[1770624975867,0.002,2069.4,2069.2,0.001]
[1770624980641,0.002,2069.4,2069.0,0.001]
[1770624982668,0.002,2069.4,2069.0,2.24697729]
[1770624984564,0.002,2069.4,2069.1,1.20825479]
[1770624987970,0.002,2069.4,2069.2,0.001]
[1770624991946,2.35435853,2069.3,2068.8,0.001]
[1770624993043,3.50437029,2069.2,2068.8,0.001]
[1770624995873,2.35435853,2069.0,2068.5,0.001]
[1770624996443,2.29617389,2068.6,2068.1,0.001]
[1770624997159,0.05818464,2068.7,2068.1,0.001]
[1770624997160,2.35435853,2068.4,2068.1,0.001]
[1770624997542,2.35435853,2068.4,2067.9,0.001]
[1770624997746,2.35435853,2068.1,2067.9,0.001]